fUST/lending_fUST_20250726
["ID","MTS","AMOUNT","RATE_DAILY","PERIOD"]
[374879523,1753459456943,610.558941,0.00013699,2]
[374879526,1753459787877,5000.0,0.0001701,2]
[374879586,1753459832643,-2670.9931903,0.00017622,2]
[374879587,1753459832720,-2329.0068097,0.00017622,2]
[374879588,1753459832730,-161.36941392,0.000178,2]
[374879589,1753459832740,-183.0102038,0.00017835,2]
[374879591,1753459832750,-300.0,0.00017835,2]
[374879592,1753459832760,-6101.50238001,0.00017835,2]
[374879593,1753459832769,-24900.0,0.00017836,2]
[374879594,1753459832780,-23963.0,0.000179,2]
[374879595,1753459832789,-365.04442591,0.000189,2]
[374879596,1753459832799,-380.33565579,0.000189,2]
[374879597,1753459832808,-302.8183302,0.000189,2]
[374879598,1753459832818,-68619.87321596,0.00019078,2]
[374879599,1753459832827,-302.8183302,0.00019089,2]
[374879600,1753459832837,-312.16666667,0.00019098,2]
[374879601,1753459832846,-380.33565574,0.00019141,2]
[374879602,1753459832855,-365.34,0.00019168,3]
[374879603,1753459832865,-199.98117311,0.00019178,2]
[374879604,1753459832875,-314.56220313,0.00019178,2]
[374879605,1753459832885,-463.23115986,0.00019178,2]
[374879606,1753459832895,-214.64909614,0.00019178,2]
[374879607,1753459832904,-460.0,0.00019178,2]
[374879608,1753459832916,-1000.0,0.00019178,2]
[374879609,1753459832926,-460.0,0.00019178,2]
[374879610,1753459832935,-460.0,0.00019178,2]
[374879611,1753459832945,-150.92771911,0.00019178,2]
[374879612,1753459832955,-460.0,0.00019178,2]
[374879613,1753459832965,-460.0,0.00019178,2]
[374879614,1753459832974,-460.0,0.00019178,2]
[374879615,1753459832984,-460.0,0.00019178,2]
[374879616,1753459832993,-197.24,0.00019178,2]
[374879617,1753459833002,-500.0,0.00019178,2]
[374879618,1753459833012,-460.0,0.00019178,2]
[374879619,1753459833022,-460.0,0.00019178,2]
[374879620,1753459833032,-287.85927966,0.00019178,2]
[374879621,1753459833042,-460.0,0.00019178,2]
[374879622,1753459833052,-460.0,0.00019178,2]
[374879623,1753459833062,-460.0,0.00019178,2]
[374879624,1753459833072,-460.0,0.00019178,2]
[374879625,1753459833081,-460.0,0.00019178,2]
[374879626,1753459833091,-460.0,0.00019178,2]
[374879627,1753459833100,-460.0,0.00019178,2]
[374879628,1753459833110,-460.0,0.00019178,2]
[374879629,1753459833120,-460.0,0.00019178,2]
[374879630,1753459833130,-460.0,0.00019178,2]
[374879631,1753459833140,-460.0,0.00019178,2]
[374879632,1753459833150,-460.0,0.00019178,2]
[374879633,1753459833160,-460.0,0.00019178,2]
[374879634,1753459833170,-460.0,0.00019178,2]
[374879635,1753459833181,-460.0,0.00019178,2]
[374879636,1753459833190,-460.0,0.00019178,2]
[374879639,1753459833203,-460.0,0.00019178,2]
[374879641,1753459833214,-460.0,0.00019178,2]
[374879643,1753459833224,-460.0,0.00019178,2]
[374879645,1753459833234,-493.19774768,0.00019178,2]
[374879647,1753459833247,-460.0,0.00019178,2]
[374879649,1753459833260,-460.0,0.00019178,2]
[374879652,1753459833271,-2845.57,0.00019178,2]
[374879655,1753459833280,-557.57,0.00019178,2]
[374879657,1753459833290,-238.87140487,0.00019178,2]
[374879659,1753459833301,-460.0,0.00019178,2]
[374879661,1753459833311,-460.0,0.00019178,2]
[374879663,1753459833321,-306.98227773,0.00019178,2]
[374879665,1753459833330,-460.0,0.00019178,2]
[374879667,1753459833343,-460.0,0.00019178,2]
[374879669,1753459833353,-460.0,0.00019178,2]
[374879671,1753459833363,-352.84027876,0.00019178,2]
[374879673,1753459833373,-475.18775664,0.00019178,2]
[374879675,1753459833383,-460.0,0.00019178,2]
[374879677,1753459833393,-460.0,0.00019178,2]
[374879679,1753459833403,-460.0,0.00019178,2]
[374879681,1753459833414,-460.0,0.00019178,2]
[374879683,1753459833424,-460.0,0.00019178,2]
[374879685,1753459833434,-460.0,0.00019178,2]
[374879687,1753459833444,-460.0,0.00019178,2]
[374879690,1753459833454,-460.0,0.00019178,2]
[374879691,1753459833464,-460.0,0.00019178,2]
[374879694,1753459833474,-460.0,0.00019178,2]
[374879695,1753459833484,-252.92772177,0.00019178,2]
[374879697,1753459833494,-460.0,0.00019178,2]
[374879699,1753459833503,-460.0,0.00019178,2]
[374879701,1753459833513,-460.0,0.00019178,2]
[374879703,1753459833523,-460.0,0.00019178,2]
[374879706,1753459833533,-1513.63,0.00019178,2]
[374879707,1753459833543,-500.0,0.00019178,2]
[374879710,1753459833553,-499.35,0.00019178,2]
[374879712,1753459833562,-460.0,0.00019178,2]
[374879713,1753459833572,-460.0,0.00019178,2]
[374879716,1753459833582,-460.0,0.00019178,2]
[374879718,1753459833591,-460.0,0.00019178,2]
[374879720,1753459833601,-460.0,0.00019178,2]
[374879722,1753459833610,-460.0,0.00019178,2]
[374879724,1753459833620,-460.0,0.00019178,2]
[374879726,1753459833629,-460.0,0.00019178,2]
[374879728,1753459833639,-460.0,0.00019178,2]
[374879730,1753459833649,-460.0,0.00019178,2]
[374879732,1753459833658,-460.0,0.00019178,2]
[374879734,1753459833670,-460.0,0.00019178,2]
[374879736,1753459833680,-460.0,0.00019178,2]
[374879738,1753459833689,-460.0,0.00019178,2]
[374879740,1753459833699,-460.0,0.00019178,2]
[374879742,1753459833708,-460.0,0.00019178,2]
[374879744,1753459833718,-460.0,0.00019178,2]
[374879746,1753459833728,-460.0,0.00019178,2]
[374879748,1753459833738,-389.18224421,0.00019178,2]
[374879750,1753459833747,-460.0,0.00019178,2]
[374879752,1753459833757,-460.0,0.00019178,2]
[374879754,1753459833766,-250.0,0.00019187,2]
[374879756,1753459833776,-302.8183302,0.00019278,2]
[374879758,1753459833786,-380.33565574,0.00019383,2]
[374879760,1753459833795,-460.0,0.00019452,2]
[374879762,1753459833805,-198.39848728,0.00019452,2]
[374879764,1753459833815,-580.38,0.00019452,2]
[374879766,1753459833825,-178.02,0.00019452,2]
[374879769,1753459833835,-460.0,0.00019452,2]
[374879771,1753459833848,-460.0,0.00019452,2]
[374879772,1753459833858,-460.0,0.00019452,2]
[374879775,1753459833868,-2845.57,0.00019452,2]
[374879777,1753459833878,-557.57,0.00019452,2]
[374879779,1753459833888,-460.0,0.00019452,2]
[374879781,1753459833898,-460.0,0.00019452,2]
[374879783,1753459833908,-460.0,0.00019452,2]
[374879785,1753459833919,-460.0,0.00019452,2]
[374879787,1753459833929,-460.0,0.00019452,2]
[374879789,1753459833939,-460.0,0.00019452,2]
[374879791,1753459833958,-460.0,0.00019452,2]
[374879793,1753459833968,-460.0,0.00019452,2]
[374879795,1753459833978,-460.0,0.00019452,2]
[374879797,1753459833987,-460.0,0.00019452,2]
[374879799,1753459833997,-460.0,0.00019452,2]
[374879801,1753459834007,-460.0,0.00019452,2]
[374879803,1753459834016,-460.0,0.00019452,2]
[374879805,1753459834026,-460.0,0.00019452,2]
[374879808,1753459834036,-1513.63,0.00019452,2]
[374879810,1753459834045,-499.35,0.00019452,2]
[374879812,1753459834055,-460.0,0.00019452,2]
[374879813,1753459834064,-460.0,0.00019452,2]
[374879816,1753459834076,-460.0,0.00019452,2]
[374879818,1753459834086,-460.0,0.00019452,2]
[374879820,1753459834095,-460.0,0.00019452,2]
[374879822,1753459834104,-460.0,0.00019452,2]
[374879824,1753459834114,-460.0,0.00019452,2]
[374879826,1753459834125,-460.0,0.00019452,2]
[374879828,1753459834134,-460.0,0.00019452,2]
[374879830,1753459834144,-460.0,0.00019452,2]
[374879832,1753459834153,-460.0,0.00019452,2]
[374879834,1753459834164,-460.0,0.00019452,2]
[374879836,1753459834174,-460.0,0.00019452,2]
[374879838,1753459834184,-460.0,0.00019452,2]
[374879840,1753459834195,-460.0,0.00019452,2]
[374879842,1753459834205,-460.0,0.00019452,2]
[374879844,1753459834214,-460.0,0.00019452,2]
[374879846,1753459834224,-420.0,0.00019463,2]
[374879848,1753459834234,-302.8183302,0.00019467,2]
[374879850,1753459834243,-380.33565574,0.00019624,2]
[374879852,1753459834253,-302.8183302,0.00019656,2]
[374879854,1753459834267,-460.0,0.00019726,2]
[374879856,1753459834277,-460.0,0.00019726,2]
[374879858,1753459834287,-460.0,0.00019726,2]
[374879860,1753459834296,-460.0,0.00019726,2]
[374879862,1753459834307,-2845.57,0.00019726,2]
[374879864,1753459834317,-557.57,0.00019726,2]
[374879866,1753459834327,-460.0,0.00019726,2]
[374879868,1753459834341,-460.0,0.00019726,2]
[374879870,1753459834351,-460.0,0.00019726,2]
[374879872,1753459834364,-460.0,0.00019726,2]
[374879875,1753459834374,-460.0,0.00019726,2]
[374879877,1753459834384,-460.0,0.00019726,2]
[374879879,1753459834394,-224.10116715,0.00019726,2]
[374879881,1753459834404,-460.0,0.00019726,2]
[374879883,1753459834415,-460.0,0.00019726,2]
[374879885,1753459834425,-460.0,0.00019726,2]
[374879887,1753459834435,-460.0,0.00019726,2]
[374879889,1753459834446,-460.0,0.00019726,2]
[374879891,1753459834456,-460.0,0.00019726,2]
[374879893,1753459834465,-460.0,0.00019726,2]
[374879895,1753459834476,-1513.63,0.00019726,2]
[374879897,1753459834486,-499.35,0.00019726,2]
[374879899,1753459834495,-460.0,0.00019726,2]
[374879901,1753459834505,-460.0,0.00019726,2]
[374879903,1753459834514,-460.0,0.00019726,2]
[374879905,1753459834524,-460.0,0.00019726,2]
[374879907,1753459834533,-460.0,0.00019726,2]
[374879909,1753459834543,-460.0,0.00019726,2]
[374879911,1753459834552,-531.47170609,0.00019726,2]
[374879913,1753459834561,-460.0,0.00019726,2]
[374879915,1753459834571,-460.0,0.00019726,2]
[374879917,1753459834580,-460.0,0.00019726,2]
[374879919,1753459834590,-460.0,0.00019726,2]
[374879922,1753459834609,-460.0,0.00019726,2]
[374879924,1753459834620,-460.0,0.00019726,2]
[374879926,1753459834630,-460.0,0.00019726,2]
[374879929,1753459834641,-460.0,0.00019726,2]
[374879931,1753459834651,-460.0,0.00019726,2]
[374879933,1753459834660,-460.0,0.00019726,2]
[374879935,1753459834670,-161.36941389,0.00019799,2]
[374879937,1753459834680,-177.88527037,0.00019821,2]
[374879939,1753459834690,-242.77246423,0.00019845,4]
[374879941,1753459834700,-380.33565574,0.00019866,2]
[374879943,1753459834710,-500.0,0.00019873,2]
[374879945,1753459834720,-258688.74841881,0.000199,2]
[374879947,1753459834730,-2029.00208963,0.000199,2]
[374879949,1753459834739,-7214.73084693,0.0002,10]
[374879951,1753459834750,-500.68,0.0002,2]
[374879953,1753459834759,-460.0,0.0002,2]
[374879955,1753459834770,-460.0,0.0002,2]
[374879957,1753459834780,-460.0,0.0002,2]
[374879959,1753459834790,-2845.57,0.0002,2]
[374879961,1753459834799,-557.57,0.0002,2]
[374879963,1753459834809,-460.0,0.0002,2]
[374879966,1753459834820,-460.0,0.0002,2]
[374879967,1753459834830,-460.0,0.0002,2]
[374879970,1753459834839,-460.0,0.0002,2]
[374879972,1753459834849,-460.0,0.0002,2]
[374879974,1753459834859,-460.0,0.0002,2]
[374879976,1753459834868,-460.0,0.0002,2]
[374879978,1753459834878,-460.0,0.0002,2]
[374879980,1753459834888,-460.0,0.0002,2]
[374879982,1753459834897,-460.0,0.0002,2]
[374879984,1753459834907,-460.0,0.0002,2]
[374879986,1753459834917,-1513.63,0.0002,2]
[374879988,1753459834927,-499.35,0.0002,2]
[374879990,1753459834937,-460.0,0.0002,2]
[374879992,1753459834947,-460.0,0.0002,2]
[374879994,1753459834957,-460.0,0.0002,2]
[374879996,1753459834966,-460.0,0.0002,2]
[374879998,1753459834976,-460.0,0.0002,2]
[374880000,1753459834986,-460.0,0.0002,2]
[374880002,1753459834996,-460.0,0.0002,2]
[374880004,1753459835006,-460.0,0.0002,2]
[374880006,1753459835015,-460.0,0.0002,2]
[374880008,1753459835025,-460.0,0.0002,2]
[374880010,1753459835035,-460.0,0.0002,2]
[374880012,1753459835044,-460.0,0.0002,2]
[374880014,1753459835054,-460.0,0.0002,2]
[374880016,1753459835064,-460.0,0.0002,2]
[374880018,1753459835074,-460.0,0.0002,2]
[374880020,1753459835083,-460.0,0.0002,2]
[374880022,1753459835093,-377.37,0.00020099,2]
[374880024,1753459835103,-380.33565574,0.00020107,2]
[374880026,1753459835112,-610.558941,0.00020187,2]
[374880028,1753459835122,-460.0,0.00020273,2]
[374880031,1753459835133,-460.0,0.00020273,2]
[374880033,1753459835143,-460.0,0.00020273,2]
[374880035,1753459835152,-2845.57,0.00020273,2]
[374880037,1753459835164,-557.57,0.00020273,2]
[374880039,1753459835173,-460.0,0.00020273,2]
[374880041,1753459835182,-460.0,0.00020273,2]
[374880043,1753459835192,-564.0527586,0.00020273,2]
[374880045,1753459835202,-460.0,0.00020273,2]
[374880047,1753459835211,-460.0,0.00020273,2]
[374880049,1753459835232,-460.0,0.00020273,2]
[374880051,1753459835245,-460.0,0.00020273,2]
[374880053,1753459835257,-460.0,0.00020273,2]
[374880055,1753459835267,-460.0,0.00020273,2]
[374880057,1753459835278,-460.0,0.00020273,2]
[374880059,1753459835287,-460.0,0.00020273,2]
[374880061,1753459835298,-1513.63,0.00020273,2]
[374880063,1753459835307,-499.35,0.00020273,2]
[374880065,1753459835317,-170.32,0.00020273,2]
[374880067,1753459835328,-460.0,0.00020273,2]
[374880069,1753459835338,-460.0,0.00020273,2]
[374880071,1753459835347,-263.00104375,0.00020273,2]
[374880073,1753459835358,-460.0,0.00020273,2]
[374880075,1753459835367,-460.0,0.00020273,2]
[374880077,1753459835378,-460.0,0.00020273,2]
[374880079,1753459835388,-460.0,0.00020273,2]
[374880081,1753459835398,-460.0,0.00020273,2]
[374880083,1753459835407,-460.0,0.00020273,2]
[374880085,1753459835418,-460.0,0.00020273,2]
[374880087,1753459835427,-460.0,0.00020273,2]
[374880089,1753459835437,-512.38,0.00020273,2]
[374880091,1753459835446,-460.0,0.00020273,2]
[374880093,1753459835457,-460.0,0.00020273,2]
[374880095,1753459835466,-460.0,0.00020273,2]
[374880097,1753459835476,-380.33565574,0.00020348,3]
[374880099,1753459835486,-1000.0,0.00020421,2]
[374880101,1753459835495,-500.0,0.00020541,2]
[374880103,1753459835505,-460.0,0.00020547,2]
[374880105,1753459835516,-460.0,0.00020547,2]
[374880107,1753459835527,-460.0,0.00020547,2]
[374880109,1753459835537,-2845.57,0.00020547,2]
[374880111,1753459835546,-557.57,0.00020547,2]
[374880113,1753459835555,-460.0,0.00020547,2]
[374880115,1753459835565,-498.23653331,0.00020547,2]
[374880117,1753459835575,-460.0,0.00020547,2]
[374880119,1753459835584,-460.0,0.00020547,2]
[374880121,1753459835593,-460.0,0.00020547,2]
[374880123,1753459835603,-460.0,0.00020547,2]
[374880125,1753459835613,-460.0,0.00020547,2]
[374880127,1753459835623,-460.0,0.00020547,2]
[374880129,1753459835634,-460.0,0.00020547,2]
[374880131,1753459835644,-460.0,0.00020547,2]
[374880133,1753459835653,-1513.63,0.00020547,2]
[374880135,1753459835664,-499.35,0.00020547,2]
[374880137,1753459835674,-460.0,0.00020547,2]
[374880140,1753459835687,-460.0,0.00020547,2]
[374880142,1753459835696,-460.0,0.00020547,2]
[374880160,1753459835852,-460.0,0.00020547,2]
[374880162,1753459835862,-478.19,0.00020547,2]
[374880164,1753459835872,-460.0,0.00020547,2]
[374880166,1753459835881,-460.0,0.00020547,2]
[374880168,1753459835891,-460.0,0.00020547,2]
[374880170,1753459835900,-460.0,0.00020547,2]
[374880172,1753459835909,-460.0,0.00020547,2]
[374880174,1753459835921,-460.0,0.00020547,2]
[374880176,1753459835931,-380.33565574,0.0002059,3]
[374880178,1753459835941,-177.88527034,0.00020677,2]
[374880180,1753459835951,-3000.0,0.000208,2]
[374880182,1753459835963,-3000.0,0.0002081,2]
[374880184,1753459835973,-3000.0,0.0002082,2]
[374880186,1753459835983,-151.0,0.00020821,2]
[374880188,1753459835994,-151.0,0.00020821,2]
[374880190,1753459836003,-151.0,0.00020821,2]
[374880192,1753459836013,-151.0,0.00020821,2]
[374880194,1753459836023,-151.0,0.00020821,2]
[374880196,1753459836032,-460.0,0.00020821,2]
[374880198,1753459836042,-161.578604,0.00020821,2]
[374880200,1753459836052,-161.578604,0.00020821,2]
[374880202,1753459836061,-151.0,0.00020821,2]
[374880204,1753459836071,-2845.57,0.00020821,2]
[374880206,1753459836080,-263.736047,0.00020821,2]
[374880208,1753459836090,-263.736047,0.00020821,2]
[374880210,1753459836099,-557.57,0.00020821,2]
[374880212,1753459836108,-151.0,0.00020821,2]
[374880214,1753459836117,-460.0,0.00020821,2]
[374880216,1753459836127,-460.0,0.00020821,2]
[374880218,1753459836136,-460.0,0.00020821,2]
[374880220,1753459836145,-151.0,0.00020821,2]
[374880222,1753459836155,-460.0,0.00020821,2]
[374880224,1753459836164,-460.0,0.00020821,2]
[374880226,1753459836173,-151.0,0.00020821,2]
[374880228,1753459836183,-151.0,0.00020821,2]
[374880230,1753459836193,-460.0,0.00020821,2]
[374880232,1753459836202,-186.78,0.00020821,2]
[374880234,1753459836211,-1513.63,0.00020821,2]
[374880236,1753459836221,-151.0,0.00020821,2]
[374880238,1753459836230,-499.35,0.00020821,2]
[374880240,1753459836239,-357.23329802,0.00020821,2]
[374880242,1753459836249,-151.0,0.00020821,2]
[374880244,1753459836263,-497.88685408,0.00020821,2]
[374880246,1753459836273,-164.78,0.00020821,2]
[374880248,1753459836282,-460.0,0.00020821,2]
[374880250,1753459836291,-460.0,0.00020821,2]
[374880252,1753459836302,-460.0,0.00020821,2]
[374880254,1753459836312,-151.0,0.00020821,2]
[374880256,1753459836322,-151.0,0.00020821,2]
[374880258,1753459836332,-460.0,0.00020821,2]
[374880260,1753459836342,-151.0,0.00020821,2]
[374880262,1753459836352,-151.0,0.00020821,2]
[374880264,1753459836362,-151.0,0.00020821,2]
[374880266,1753459836372,-3000.0,0.0002083,2]
[374880268,1753459836381,-380.33565574,0.00020831,4]
[374880270,1753459836391,-3000.0,0.0002084,2]
[374880272,1753459836400,-3000.0,0.0002085,2]
[374880274,1753459836417,-3000.0,0.0002086,2]
[374880277,1753459836431,-160.0,0.00020867,2]
[374880278,1753459836441,-3000.0,0.0002087,2]
[374880281,1753459836451,-3000.0,0.0002088,2]
[374880283,1753459836460,-3000.0,0.0002089,2]
[374880285,1753459836470,-3000.0,0.000209,2]
[374880287,1753459836479,-3000.0,0.0002091,2]
[374880289,1753459836489,-3000.0,0.0002092,2]
[374880291,1753459836499,-3000.0,0.0002093,2]
[374880293,1753459836509,-3000.0,0.0002094,2]
[374880295,1753459836519,-3000.0,0.0002095,2]
[374880297,1753459836528,-3000.0,0.0002096,2]
[374880299,1753459836537,-1500.0,0.00020968,2]
[374880301,1753459836547,-3000.0,0.0002097,2]
[374880303,1753459836557,-3000.0,0.0002098,2]
[374880305,1753459836567,-3000.0,0.0002099,2]
[374880307,1753459836577,-26138.65798957,0.00021,2]
[374880309,1753459836586,-202.24019077,0.00021,2]
[374880311,1753459836596,-3000.0,0.00021,2]
[374880313,1753459836606,-3000.0,0.00021,2]
[374880315,1753459836615,-151.0,0.00021,7]
[374880317,1753459836624,-151.0,0.00021,7]
[374880319,1753459836634,-151.0,0.00021,7]
[374880321,1753459836644,-151.0,0.00021,7]
[374880323,1753459836653,-151.0,0.00021,7]
[374880325,1753459836664,-151.0,0.00021,7]
[374880327,1753459836674,-151.0,0.00021,7]
[374880329,1753459836684,-151.0,0.00021,7]
[374880331,1753459836693,-227.92311,0.00021,7]
[374880332,1753459836703,-151.0,0.00021,2]
[374880333,1753459836712,-151.0,0.00021,2]
[374880334,1753459836721,-151.0,0.00021,2]
[374880335,1753459836731,-151.0,0.00021,2]
[374880336,1753459836739,-161.578604,0.00021,2]
[374880337,1753459836749,-161.578604,0.00021,2]
[374880338,1753459836758,-151.0,0.00021,2]
[374880339,1753459836767,-263.736047,0.00021,2]
[374880340,1753459836776,-263.736047,0.00021,2]
[374880341,1753459836785,-151.0,0.00021,2]
[374880342,1753459836794,-151.0,0.00021,2]
[374880343,1753459836803,-151.0,0.00021,2]
[374880344,1753459836813,-151.0,0.00021,2]
[374880345,1753459836822,-151.0,0.00021,2]
[374880346,1753459836832,-151.0,0.00021,2]
[374880347,1753459836841,-156.857994,0.00021,2]
[374880348,1753459836850,-3000.0,0.0002101,2]
[374880349,1753459836860,-3000.0,0.0002101,2]
[374880350,1753459836870,-3000.0,0.0002102,2]
[374880351,1753459836879,-3000.0,0.0002102,2]
[374880352,1753459836888,-3000.0,0.0002103,2]
[374880353,1753459836897,-3000.0,0.0002103,2]
[374880354,1753459836906,-3000.0,0.0002104,2]
[374880355,1753459836916,-3000.0,0.0002104,2]
[374880356,1753459836925,-3000.0,0.0002105,2]
[374880358,1753459836935,-3000.0,0.0002105,2]
[374880360,1753459836944,-3000.0,0.0002106,2]
[374880362,1753459836954,-3000.0,0.0002106,2]
[374880364,1753459836963,-3000.0,0.0002107,2]
[374880366,1753459836973,-3000.0,0.0002107,2]
[374880368,1753459836982,-380.33565574,0.00021072,4]
[374880370,1753459836992,-500.0,0.00021073,2]
[374880372,1753459837002,-472.58471755,0.00021073,2]
[374880374,1753459837011,-500.0,0.00021073,2]
[374880376,1753459837021,-500.37542207,0.00021073,2]
[374880378,1753459837030,-500.0,0.00021073,2]
[374880380,1753459837040,-500.0,0.00021073,2]
[374880382,1753459837049,-500.0,0.00021073,2]
[374880384,1753459837059,-500.0,0.00021073,2]
[374880386,1753459837069,-500.0,0.00021073,2]
[374880388,1753459837078,-500.0,0.00021073,2]
[374880390,1753459837088,-500.0,0.00021073,2]
[374880392,1753459837097,-500.0,0.00021073,2]
[374880394,1753459837107,-626.30752255,0.00021073,2]
[374880396,1753459837116,-500.43649988,0.00021073,2]
[374880398,1753459837125,-500.0,0.00021073,2]
[374880400,1753459837135,-500.0,0.00021073,2]
[374880402,1753459837144,-3000.0,0.0002108,2]
[374880404,1753459837154,-3000.0,0.0002108,2]
[374880406,1753459837164,-3000.0,0.0002109,2]
[374880408,1753459837173,-3000.0,0.0002109,2]
[374880410,1753459837183,-160.0,0.00021091,2]
[374880412,1753459837192,-160.0,0.00021091,2]
[374880414,1753459837202,-231.20877768,0.00021091,2]
[374880416,1753459837211,-215.93003454,0.00021091,2]
[374880418,1753459837220,-160.0,0.00021091,2]
[374880420,1753459837230,-214.7599002,0.00021091,2]
[374880422,1753459837239,-160.0,0.00021091,2]
[374880424,1753459837249,-460.0,0.00021095,2]
[374880426,1753459837260,-2845.57,0.00021095,2]
[374880428,1753459837270,-557.57,0.00021095,2]
[374880430,1753459837279,-460.0,0.00021095,2]
[374880432,1753459837289,-336.53313187,0.00021095,2]
[374880434,1753459837298,-460.0,0.00021095,2]
[374880436,1753459837310,-460.0,0.00021095,2]
[374880438,1753459837320,-460.0,0.00021095,2]
[374880440,1753459837330,-1513.63,0.00021095,2]
[374880442,1753459837340,-499.35,0.00021095,2]
[374880444,1753459837350,-460.0,0.00021095,2]
[374880446,1753459837359,-460.0,0.00021095,2]
[374880448,1753459837369,-460.0,0.00021095,2]
[374880450,1753459837378,-429.8269109,0.00021096,2]
[374880452,1753459837388,-429.8269109,0.00021096,2]
[374880455,1753459837397,-3000.0,0.000211,2]
[374880457,1753459837407,-3000.0,0.000211,2]
[374880459,1753459837418,-151.0,0.000211,2]
[374880460,1753459837427,-151.0,0.000211,2]
[374880463,1753459837438,-151.0,0.000211,2]
[374880464,1753459837448,-3000.0,0.0002111,2]
[374880467,1753459837458,-3000.0,0.0002111,2]
[374880468,1753459837469,-161.141304,0.0002111,2]
[374880471,1753459837479,-151.0,0.0002111,2]
[374880473,1753459837489,-161.578604,0.0002111,2]
[374880474,1753459837500,-161.578604,0.0002111,2]
[374880476,1753459837512,-263.736047,0.0002111,2]
[374880479,1753459837524,-263.736047,0.0002111,2]
[374880481,1753459837535,-3000.0,0.0002112,2]
[374880483,1753459837545,-3000.0,0.0002112,2]
[374880485,1753459837555,-151.0,0.0002112,2]
[374880487,1753459837565,-3000.0,0.0002113,2]
[374880489,1753459837575,-3000.0,0.0002113,2]
[374880491,1753459837585,-3000.0,0.0002114,2]
[374880492,1753459837596,-3000.0,0.0002114,2]
[374880495,1753459837606,-3000.0,0.0002115,2]
[374880496,1753459837615,-3000.0,0.0002115,2]
[374880498,1753459837625,-3000.0,0.0002116,2]
[374880501,1753459837634,-3000.0,0.0002116,2]
[374880503,1753459837644,-3000.0,0.0002117,2]
[374880504,1753459837653,-3000.0,0.0002117,2]
[374880507,1753459837664,-3000.0,0.0002118,2]
[374880509,1753459837674,-3000.0,0.0002118,2]
[374880511,1753459837684,-3000.0,0.0002119,2]
[374880513,1753459837694,-3000.0,0.0002119,2]
[374880515,1753459837703,-3000.0,0.000212,2]
[374880517,1753459837713,-3000.0,0.000212,2]
[374880519,1753459837723,-3000.0,0.0002121,2]
[374880521,1753459837735,-3000.0,0.0002121,2]
[374880523,1753459837744,-3000.0,0.0002122,2]
[374880525,1753459837754,-3000.0,0.0002122,2]
[374880527,1753459837764,-3000.0,0.0002123,2]
[374880529,1753459837774,-3000.0,0.0002123,2]
[374880531,1753459837783,-425.149,0.00021233,2]
[374880533,1753459837793,-178.723,0.00021233,2]
[374880535,1753459837803,-3000.0,0.0002124,2]
[374880537,1753459837812,-3000.0,0.0002124,2]